Cogmind - Beta 13 @@@ ROGUE MODE // 2024.06.03 @ 21:28:11 Player: Kat Result: Self-destructed Performance ------------- Evolutions (0) 0 Regions Visited (4) 800 Robots Destroyed (16) 80 Value Destroyed (256) 256 Prototype IDs (24) 480 Alien Tech Used (0) 0 Bonus (300) 300 TOTAL SCORE: 1916 Bonus ------- Aligned with FarCom 300 Cogmind --------- Core Integrity 80/250 Matter 286/300 Energy 98/100 System Corruption 0% Temperature Cool (0) Movement Walking (190) Ox1 Location -9/Mines Parts ------- > --- POWER (1) -------- (None) > --- PROPULSION (2) --- Aluminum Leg > --- UTILITY (2) ------ Medium Storage Unit Trap Reconfigurator > --- WEAPON (2) ------- (None) > --- INVENTORY (10) --- Aluminum Leg Wheel Wheel Sensor Array Sensor Array Experimental Sensor Array Seismic Detector Assault Rifle Peak State ------------ > --- POWER ------------ Light Ion Engine > --- PROPULSION ------- Aluminum Leg Aluminum Leg > --- UTILITY ---------- Medium Storage Unit Experimental Sensor Array > --- WEAPON ----------- Assault Rifle Makeshift Axe > --- INVENTORY -------- Aluminum Leg Wheel Wheel Sensor Array Sensor Array Seismic Detector Trap Reconfigurator Assault Rifle Assault Rifle [Rating: 19] Favorites ----------- Power Ion Engine Engine Ion Engine Propulsion Aluminum Leg Leg Aluminum Leg Utility Medium Storage Unit Device Experimental Sensor Array Storage Medium Storage Unit Weapon Assault Rifle Ballistic Gun Assault Rifle Slashing Weapon Makeshift Axe Build | -11 -10 -10 -10 -9 ------- Run | Yrd Mat Min Exi Min Slots Evolved . | . . . . . Power . | . . . . . Propulsion . | . . . . . Utility . | . . . . . Weapon . | . . . . . Parts Attached 21 | 7 9 2 1 2 Power 3 | 1 1 . 1 . Engine 3 | 1 1 . 1 . Core . | . . . . . Reactor . | . . . . . Propulsion 5 | 2 3 . . . Treads . | . . . . . Leg 5 | 2 3 . . . Wheel . | . . . . . Hover . | . . . . . Flight . | . . . . . Utility 7 | 2 3 1 . 1 Device 5 | 1 2 1 . 1 Storage 2 | 1 1 . . . Processor . | . . . . . Hackware . | . . . . . Protection . | . . . . . Artifact . | . . . . . Weapon 6 | 2 2 1 . 1 Energy Gun . | . . . . . Energy Cannon . | . . . . . Ballistic Gun 5 | 2 2 . . 1 Ballistic Cannon . | . . . . . Launcher . | . . . . . Special Weapon . | . . . . . Impact Weapon . | . . . . . Slashing Weapon 1 | . . 1 . . Piercing Weapon . | . . . . . Special Melee Weapon . | . . . . . Unidentified Prototypes 1 | . . 1 . . Parts Lost 3 | . . . . 3 Power 1 | . . . . 1 Propulsion 1 | . . . . 1 Utility . | . . . . . Weapon 1 | . . . . 1 Highest Loss Streak 3 | . . . . 3 To Critical Strikes . | . . . . . Average Slot Usage (%) 99 | . 98 100 100 96 Engine 13 | . 14 14 14 12 Leg 27 | . 28 28 28 27 Device 14 | . 14 14 14 14 Storage 14 | . 14 14 14 14 Ballistic Gun 18 | . 26 17 14 12 Slashing Weapon 9 | . . 10 14 13 Naked Turns . | . . . . . Heaviest Build 21 | 15 20 21 21 19 Greatest Support 20 | 20 20 20 20 20 Greatest Overweight (x) 1 | . . 1 1 . Average Overweight (x) . | . . . . . Largest Inventory Capacity 10 | 8 10 10 10 10 Average Capacity 9 | 7 9 10 10 10 Most Carried 10 | 4 10 9 9 9 Average Carried 7 | 3 6 8 8 8 Final Capacity 10 | 8 10 10 10 10 Final Carried 9 | 4 7 9 9 8 Class Distribution -------------------- 97% | Mutant Dominant Class ---------------- Mutant | -10/Materials Mutant | -10/Mines Mutant | -10/Exiles Mutant | -9/Mines Resources | -11 -10 -10 -10 -9 ----------- Run | Yrd Mat Min Exi Min Matter Collected 586 | 312 230 . . 44 Remotely . | . . . . . Salvage Created 496 | 166 271 . . 59 Parts 31 | 11 15 . . 5 Haulers Intercepted 1 | . 1 . . . Recyclers Shooed 1 | 1 . . . . Parts Field Recycled . | . . . . . Retrieved Matter . | . . . . . Parts Self-Destructed . | . . . . . Prevented . | . . . . . Kills | -11 -10 -10 -10 -9 ------- Run | Yrd Mat Min Exi Min Combat Hostiles Destroyed 9 | . 5 . . 4 Melee 4 | . . . . 4 Guns 5 | . 5 . . . Classes Destroyed 7 | 3 3 . . 1 Worker 1 | 1 . . . . Tunneler 3 | 3 . . . . Hauler 1 | . 1 . . . Recycler 1 | 1 . . . . Watcher 1 | . 1 . . . Swarmer 4 | . . . . 4 Grunt 5 | . 5 . . . Best Kill Streak 4 | 4 2 . . 4 Combat Bots Only 4 | . 2 . . 4 Max Kills in Single Turn 1 | 1 1 . . 1 Gunslinging . | . . . . . Exploded . | . . . . . Melee 1 | . . . . 1 Uniques/NPCs Destroyed . | . . . . . Combat | -11 -10 -10 -10 -9 -------- Run | Yrd Mat Min Exi Min Hostile Shots Fired 80 | . 39 . . 41 Missed 18 | . 9 . . 9 Damage Taken 812 | . 331 . . 481 Core 170 | . 56 . . 114 Absorbed by Shields . | . . . . . Regen/Repaired (Parts) 76 | . 76 . . . Core Remaining (%) 100 | 100 . . . . Volleys Fired 35 | 10 22 . . 3 Largest 2 | 2 2 . . 1 Hottest 40 | 40 40 . . 20 Shots Fired 67 | 20 44 . . 3 Gun 67 | 20 44 . . 3 Cannon . | . . . . . Launcher . | . . . . . Special . | . . . . . Kinetic 67 | 20 44 . . 3 Thermal . | . . . . . Explosive . | . . . . . Electromagnetic . | . . . . . Robot Hit Streak 11 | 7 11 . . 2 Robot Miss Streak 2 | 2 2 . . 1 Penetration Max . | . . . . . Secondary Targets . | . . . . . Shots Hit Robots 53 | 11 28 . . 14 Core Hits 23 | 6 13 . . 4 Critical Kills . | . . . . . Critical Parts Destroyed . | . . . . . Critical Strikes 1 | . . . . 1 Sever 1 | . . . . 1 Melee Attacks 20 | . . . . 20 Impact . | . . . . . Slashing 20 | . . . . 20 Piercing . | . . . . . Sneak Attacks . | . . . . . Combat Hostiles . | . . . . . Follow-up Attacks . | . . . . . Damage Inflicted 889 | 133 346 . . 410 Guns 506 | 133 346 . . 27 Cannons . | . . . . . Explosions . | . . . . . Melee 383 | . . . . 383 Ramming . | . . . . . Kinetic 506 | 133 346 . . 27 Thermal . | . . . . . Explosive . | . . . . . Electromagnetic . | . . . . . Impact . | . . . . . Slashing 383 | . . . . 383 Piercing . | . . . . . Highest Corruption . | . . . . . Average Corruption . | . . . . . Corruption Purged . | . . . . . Corruption Blocked . | . . . . . Overload Shots . | . . . . . Overflow Damage 39 | . . . . 39 Projectiles . | . . . . . Explosions . | . . . . . Melee 39 | . . . . 39 Knockbacks . | . . . . . Impact . | . . . . . Kinetic . | . . . . . Secondary . | . . . . . Self-Inflicted Damage . | . . . . . Shots . | . . . . . Rammed . | . . . . . Targets Rammed . | . . . . . Kicked . | . . . . . Crushed . | . . . . . Highest Temperature 5 | . 5 . . . Average Temperature 5 | . 5 . . . Received Heat Transfer 228 | . 180 . . 48 Siege Activations . | . . . . . Robots Corrupted . | . . . . . Combat Hostiles . | . . . . . Parts Fried . | . . . . . Impact Corruptions . | . . . . . Robots Melted . | . . . . . Combat Hostiles . | . . . . . Parts Melted . | . . . . . Heat Transferred . | . . . . . Parts Sabotaged . | . . . . . Parts Stolen . | . . . . . Parts Stripped . | . . . . . Power Chain Reactions . | . . . . . Alert | -11 -10 -10 -10 -9 ------- Run | Yrd Mat Min Exi Min Peak Influence 161 | 25 161 62 . 105 Initial 62 | . 16 62 . . Average 68 | 8 95 62 . 63 Maximum Alert Level . | . . . . . Low Security (%) 100 | 100 100 100 . 100 Level 1 . | . . . . . Level 2 . | . . . . . Level 3 . | . . . . . Level 4 . | . . . . . Level 5 . | . . . . . High Security . | . . . . . Max Security . | . . . . . Squads Dispatched 1 | . 1 . . . Investigation 1 | . 1 . . . Extermination . | . . . . . Reinforcement . | . . . . . Assault . | . . . . . Garrison . | . . . . . Intercept . | . . . . . Searches Triggered . | . . . . . Construction Impeded . | . . . . . Haulers Reinforced . | . . . . . Active Scanning Responses . | . . . . . Cargo Convoy Interrupts . | . . . . . Stealth | -11 -10 -10 -10 -9 --------- Run | Yrd Mat Min Exi Min Distress Signals 1 | . 1 . . . Communications Jammed . | . . . . . Distress Signals . | . . . . . Times Spotted 17 | . 9 . . 8 Peak Tracking Total 4 | . 4 . . 4 Tactical Retreats 1 | . . . . 1 Traps | -11 -10 -10 -10 -9 ------- Run | Yrd Mat Min Exi Min Traps Triggered . | . . . . . Indirectly . | . . . . . Trap Hack Attempts . | . . . . . Triggered . | . . . . . Disarmed . | . . . . . Reprogrammed . | . . . . . Reused . | . . . . . Traps Extracted . | . . . . . Installed . | . . . . . Triggered . | . . . . . Machines | -11 -10 -10 -10 -9 ---------- Run | Yrd Mat Min Exi Min Machines Disabled . | . . . . . Max in Single Turn . | . . . . . Machines Repaired . | . . . . . Machines Dismantled . | . . . . . Machines Sabotaged . | . . . . . Overloaded Fab Kills . | . . . . . Hacking | -11 -10 -10 -10 -9 --------- Run | Yrd Mat Min Exi Min Machines Accessed 5 | . 3 . 1 1 Terminals 3 | . 2 . . 1 Fabricators . | . . . . . Repair Stations 1 | . 1 . . . Recycling Units . | . . . . . Scanalyzers . | . . . . . Garrison Access . | . . . . . Total Hacks 23 | . 17 . 1 5 Successful 10 | . 7 . 1 2 Failed 13 | . 10 . . 3 Catastrophic 3 | . 2 . . 1 Database Lockouts . | . . . . . Manual 19 | . 14 . 1 4 Terminals 19 | . 14 . . 5 Fabricators . | . . . . . Repair Stations 3 | . 3 . . . Recycling Units . | . . . . . Scanalyzers . | . . . . . Garrison Access . | . . . . . Terminal Hacks 3 | . 1 . 1 1 Locate Traps 1 | . 1 . . . Dispatch Records 1 | . . . . 1 Derelict Proto ID Bank 1 | . . . 1 . Fabricator Hacks . | . . . . . Repair Station Hacks 3 | . 3 . . . Scan Component 2 | . 2 . . . Repair 1 | . 1 . . . Recycling Unit Hacks . | . . . . . Scanalyzer . | . . . . . Garrison Access Hacks . | . . . . . Unauthorized Hacks 4 | . 3 . . 1 Terminals 4 | . 3 . . 1 Assimilate 2 | . 2 . . . Operators 2 | . 1 . . 1 Fabricators . | . . . . . Repair Stations . | . . . . . Recycling Units . | . . . . . Scanalyzers . | . . . . . Garrison Access . | . . . . . Data Cores Recovered . | . . . . . Used . | . . . . . Hacking Detections 4 | . 3 . . 1 Full Trace Events 3 | . 2 . . 1 Feedback Events . | . . . . . Feedback Blocked . | . . . . . Robot Schematics Acquired . | . . . . . Robots Built . | . . . . . Authchips . | . . . . . Time . | . . . . . Total Robot Build Rating . | . . . . . Part Schematics Acquired . | . . . . . Parts Built . | . . . . . Authchips . | . . . . . Time . | . . . . . Total Part Build Rating . | . . . . . Parts Repaired 1 | . 1 . . . Time 26 | . 26 . . . Parts Recycled . | . . . . . Recycled Matter . | . . . . . Retrieved Matter . | . . . . . Retrieved Components . | . . . . . Parts Scanalyzed . | . . . . . Part Schematics Acquired . | . . . . . Parts Damaged . | . . . . . Bothacking | -11 -10 -10 -10 -9 ------------ Run | Yrd Mat Min Exi Min Used RIF Installer . | . . . . . Robots Hacked . | . . . . . Non-combat . | . . . . . Combat . | . . . . . Robot Hacks Applied . | . . . . . Relay Couplers Released . | . . . . . Fabnet Peak Effective % . | . . . . . Robots Rewired . | . . . . . Allies Hacked . | . . . . . Hacks Repelled . | . . . . . Allies | -11 -10 -10 -10 -9 -------- Run | Yrd Mat Min Exi Min Total Allies 1 | . 1 . . . Largest Group 1 | . 1 1 1 1 Highest-Rated Group 10 | . 10 10 10 10 Highest-Rated Ally 10 | . 10 10 10 10 Total Orders 1 | . 1 . . . FOLLOW 1 | . 1 . . . Ally Attacks . | . . . . . Total Damage . | . . . . . Kills . | . . . . . Allies Corrupted . | . . . . . Allies Melted . | . . . . . Intel | -11 -10 -10 -10 -9 ------- Run | Yrd Mat Min Exi Min Robot Analysis Total . | . . . . . Derelict Logs Recovered . | . . . . . Drone Launches . | . . . . . Drone Recoveries . | . . . . . Exploration | -11 -10 -10 -10 -9 ------------- Run | Yrd Mat Min Exi Min Turns Passed 1579 | 133 396 276 548 226 Spaces Moved 999 | 77 234 165 385 138 Core 5 | 5 . . . . Treads . | . . . . . Legs 994 | 72 234 165 385 138 Wheels . | . . . . . Hover . | . . . . . Flight . | . . . . . Fastest Speed 50 | 50 120 120 120 120 Average Speed 135 | 115 120 164 141 120 Slowest Speed 190 | 120 120 190 190 120 Overloaded Moves . | . . . . . Propulsion Burnouts . | . . . . . Robots Hopped . | . . . . . Cave-ins Triggered . | . . . . . Exploration Rate (%) 40 | 4 44 47 78 27 Regions Visited 4 Branch Regions 3 Pre-discovered Areas . | . . . . . Known Exits Taken . | . . . . . Unknown Exits Taken 4 | 1 1 1 1 . Scrap Searched . | . . . . . Spaces Dug . | . . . . . Terrain Destroyed . | . . . . . Melee . | . . . . . Projectile . | . . . . . AOE . | . . . . . Terrain Rammed . | . . . . . Walls Destroyed . | . . . . . Machines Disabled . | . . . . . Actions | -11 -10 -10 -10 -9 --------- Run | Yrd Mat Min Exi Min Total 1130 | 97 304 168 387 174 Wait 40 | . 29 . . 11 Move 995 | 76 233 164 384 138 Hop . | . . . . . Pick Up 11 | 4 4 2 1 . Fast Attach 9 | 7 2 . . . Attach 1 | . . . . 1 Detach 1 | . 1 . . . Swap 11 | . 7 2 1 1 Drop 7 | . 6 . 1 . Fire 35 | 10 22 . . 3 Melee 20 | . . . . 20 Ram . | . . . . . Kick . | . . . . . Crush . | . . . . . Escape Stasis . | . . . . . Rewire . | . . . . . Trap . | . . . . . Miscellaneous . | . . . . . Route ------- -11/Scrapyard -10/Materials -10/Mines -10/Exiles -9/Mines History --------- Turn | Location | Event 20 | -11/Scrapyard | Discovered new exit (range 15) 134 | -11/Scrapyard | Entered Materials 315 | -10/Materials | Build established: Mutant 369 | -10/Materials | Discovered new exit (range 13) 445 | -10/Materials | Repaired Assault Rifle 530 | -10/Materials | Entered Mines 530 | -10/Mines | Accompanied by 1 ally 599 | -10/Mines | A weapon hastily lodged in a ceiling crevice suddenly fell to the ground 684 | -10/Mines | Found a damaged Exp. Sensor Array with a note attached 687 | -10/Mines | Found Prototype Device 688 | -10/Mines | Identified Exp. Sensor Array 796 | -10/Mines | Deemed a non-threat by the Exiles lab entrance 796 | -10/Mines | Discovered new exit (range 5) 806 | -10/Mines | Entered Exiles 806 | -10/Exiles | Accompanied by 1 ally 841 | -10/Exiles | Discovered new exit (range 15) 862 | -10/Exiles | Met 8R-AWN 901 | -10/Exiles | Met EX-HEX 957 | -10/Exiles | Met EX-BIN 979 | -10/Exiles | Aligned with FarCom system 981 | -10/Exiles | Given EX-Vault access code 1025 | -10/Exiles | Opened EX-Vault 1041 | -10/Exiles | Found Trap Reconfigurator 1067 | -10/Exiles | Warned to stay clear of 0b10 Research branches 1100 | -10/Exiles | Met EX-DEC 1141 | -10/Exiles | Visited The Gauntlet 1354 | -10/Exiles | Left Exiles lab with Trap Reconfigurator 1354 | -10/Exiles | Entered Mines 1354 | -9/Mines | Accompanied by 1 ally 1572 | -9/Mines | Core integrity fell below 50% 1580 | -9/Mines | Self-destructed Last Messages --------------- Found 5 active squads: 5x Patrol >>Trojan(Operators) Trojan loaded successfully. Testing... Operator tracking enabled and active. 01369_ K-01 Serf collects debris. 01430_ S-10 Pest destroyed. 01440_ Destroyed Flight Unit. 01443_ K-01 Serf collects debris. 01446_ S-10 Pest destroyed. 01448_ Destroyed Lgt. Ion Engine. 01448_ S-10 Pest destroyed. 01450_ Acquired 44 matter. 01557_ L-31 Rogue Imp. Ion Engine severed. 01561_ Lgt. Ion Engine destroyed. 01568_ Assault Rifle destroyed. 01571_ Mak. Axe severed. 01576_ Aluminum Leg destroyed. 01579_ Assault Rifle severed. Map ----- +----------------------------------------------------+ | ??????????????????????????????????????????????## | | ??????????????????????????????????????????????# | | ?????????????????????????????????????????###### | | ?????????????????????????????????????????# | | ?????????????????????????????????????????# ##### | | ?????????????????????????????????????????# #???## | | ???????????????????????????????????????### #????## | | ???????????????????????????????????????# #?????# | | ???????????????????????????????????????# ###?????# | | ???????????????????????????????????????# #???????# | | ???????????????????????????????????????# #???????# | | ???????????????????????????????????##### #???????# | | ???????????????????????????????????? ## #???????# | | ????????????????????????????????????# ## #???????# | | ????????????????????????????????????# ## #???????# | | ????????????????????????????????????#g #???????# | | ????????????????????????????????????# ####????#### | | ????????????????????????????????????# #??????## | | ????????????????????????????????????# #??????# | | ????????????????????????#######????## #??????# ## | | ???????????????????????## #??### ##?????????# | | ???????????????????????# #?## #?????? #?? | | ???????????????????????# ##?# ##### ##? | | ??????????????????????## ###??# #? | | ?????????????????g???## ##????# # | | ??????????????## ?l?## [@####### # ###### | | ??????????????# g## l ## #????????? | | ??????????????# r g #### #????????? | | ??????????????## ############??# ????????? | | ???????????????### ##?????????????###????????? | | ?????????????????## #?????????????????????????? | | ??????????????????## ##?????????????????????????? | | ???????????????????####??????????????????????????? | | ?????????????????????????????????????????????????? | | | | | | | | | | | | | | | | | | | | | | | | | | | | | | | | | +----------------------------------------------------+ Best States ------------- Heat Dissipation 25 Energy Generation 10 Energy Capacity 250 Matter Stores 300 Matter Capacity 300 Sight Range 16 Robot Scan Range 20 Terrain Scan Density 10 Evasion (%) 55 Item Schematics ----------------- None Robot Schematics ------------------ None Fabricated ------------ Nothing Alien Tech Used ----------------- None Achievements -------------- None Challenges ------------ None Game ------ Seed InsulatedArmageddonModule Manual? 0 Play Time 00:16:27 Cumulative 18.7 hours Start 2024.06.03 @ 21:13:47 End 2024.06.03 @ 21:28:11 Sessions 1 Manual Loads 0 Difficulty Rogue Special Mode None Game No. 41 Rogue 41 Adventurer 0 Explorer 0 Win Type - Total 0 Types 0/0/0/0/0/0/0/0/0 Lore% 18 Gallery% 21 Achievement% 17 Wizard Run 0 Options --------- Layout 0 ASCII 0 Keyboard 0 Movement Mouse Keybinds 0 Fullscreen 2 Font 18/Terminus Map View 76x50 Zoom Use 0% Tactical HUD 1 Map Filters NONE Filters NONE Steam 1 RUN: d21ac436-0d54-4c61-98d6-6da3b2934266